bitfinex-derivatives/quotes_SOLF0:USTF0_20250310
["timestamp","ask_amount","ask_price","bid_price","bid_amount"]
[1741629682800,8.5004,117.7,117.62,49.00602263]
[1741629683001,49.00602263,117.76,117.64,49.00602263]
[1741629683202,7.155e-05,117.67,117.66,57.50912263]
[1741629683500,280.1,117.75,117.66,103.56602263]
[1741629683697,280.1,117.75,117.71,8.4994]
[1741629684002,280.1,117.8,117.71,54.56]
[1741629684204,280.1,117.8,117.72,49.00602263]
[1741629684406,0.054984,117.77,117.74,0.05748141]
[1741629684907,8.496,117.76,117.74,0.05748141]
[1741629685204,0.054984,117.77,117.74,0.05748141]
[1741629685801,8.4966,117.75,117.74,8.141e-05]
[1741629686104,280.18,117.75,117.62,103.56602263]
[1741629686299,8.5022,117.68,117.63,8.5052]
[1741629686497,49.00602263,117.65,117.49,226.15398398]
[1741629686698,49.00602263,117.63,117.52,4.3338]
[1741629686897,8.5067,117.61,117.53,49.00602263]
[1741629687205,329.18602263,117.63,117.52,58.8938]
[1741629687409,0.06280352,117.58,117.56,0.05727482]
[1741629687805,280.18,117.63,117.56,54.63727482]
[1741629688311,280.18,117.63,117.57,49.00602263]
[1741629688495,280.28,117.68,117.59,49.00602263]
[1741629688700,280.28,117.68,117.6,54.56]
[1741629689402,0.06066957,117.65,117.63,0.05781889]
[1741629689709,8.5045,117.64,117.63,0.05781889]
[1741629690702,0.06066957,117.65,117.63,0.05781889]
[1741629691003,280.34,117.71,117.64,54.58]
[1741629691200,49.00602263,117.69,117.63,0.05781889]
[1741629691401,49.00602263,117.69,117.61,54.58]
[1741629691595,8.5052,117.64,117.61,54.58]
[1741629691798,49.00602263,117.69,117.61,54.58]
[1741629691998,54.56,117.7,117.61,54.58]
[1741629692203,0.0593301,117.64,117.61,54.64453046]
[1741629692409,54.56,117.7,117.61,54.58]
[1741629692609,0.05808322,117.64,117.61,54.63374643]
[1741629692810,0.05808322,117.64,117.61,103.58602263]
[1741629693009,280.4,117.7,117.61,103.58602263]
[1741629693315,8.5025,117.67,117.61,103.58602263]
[1741629693604,0.05802063,117.67,117.64,0.05565776]
[1741629693810,8.5038,117.65,117.64,0.05565776]
[1741629694109,0.05802063,117.67,117.64,0.05565776]
[1741629694513,0.05802063,117.67,117.57,53.22682263]
[1741629694710,49.06404326,117.67,117.58,54.56]
[1741629694903,49.00602263,117.69,117.58,54.56]
[1741629695200,54.56,117.7,117.58,54.56]
[1741629695610,54.56,117.7,117.59,49.00602263]
[1741629695801,0.05553715,117.65,117.63,0.0591782]
[1741629696006,8.5045,117.64,117.63,0.0591782]
[1741629696809,0.06314284,117.65,117.63,0.0591782]
[1741629697409,0.06314284,117.65,117.63,57.57020083]
[1741629697604,8.5017,117.68,117.63,57.57020083]
[1741629698013,8.5012,117.69,117.64,8.5043]
[1741629698311,280.4,117.71,117.64,8.5043]
[1741629698312,280.4,117.71,117.65,49.00602263]
[1741629698515,280.4,117.71,117.66,54.56]
[1741629698813,0.05513851,117.69,117.67,0.059174]
[1741629700017,8.4986,117.73,117.68,8.5015]
[1741629700217,280.44,117.79,117.69,49.00602263]
[1741629700512,8.4965,117.76,117.71,49.00602263]
[1741629700720,280.44,117.79,117.73,49.00602263]
[1741629700917,280.44,117.79,117.74,54.54]
[1741629701312,0.06241262,117.77,117.75,0.06001149]
[1741629701819,8.4959,117.76,117.75,0.06001149]
[1741629702812,0.06241262,117.77,117.71,54.52]
[1741629703117,8.4988,117.72,117.71,54.52]
[1741629703317,49.00602263,117.75,117.67,58.932]
[1741629703620,49.00602263,117.75,117.67,4.412]
[1741629703822,49.00602263,117.75,117.66,54.52]
[1741629704031,8.5024,117.67,117.66,54.52]
[1741629704321,280.41581038,117.72,117.66,54.52]
[1741629704616,0.06393884,117.7,117.66,54.52]
[1741629704819,0.06393884,117.7,117.66,63.0228]
[1741629705022,280.36,117.77,117.68,0.05655677]
[1741629705318,280.36,117.77,117.69,57.50682263]
[1741629705515,280.36,117.77,117.7,54.52]
[1741629705716,8.4985,117.73,117.7,54.52]
[1741629706018,280.36,117.77,117.7,54.52]
[1741629706323,0.06403222,117.73,117.71,4.1297]
[1741629706913,0.06403222,117.73,117.71,4.18698683]
[1741629707321,280.36,117.77,117.71,53.19300946]
[1741629707717,280.36,117.77,117.73,8.4978]
[1741629707917,280.36,117.77,117.74,54.5]
[1741629708429,8.4937,117.8,117.74,54.5]
[1741629708719,0.06035005,117.77,117.74,54.5]
[1741629708923,280.34,117.82,117.74,54.5]
[1741629709128,0.06152316,117.78,117.76,0.06011534]
[1741629710321,8.4934,117.8,117.76,0.06011534]
[1741629710623,8.4926,117.81,117.76,0.06011534]
[1741629710819,577.6459198,117.86,117.79,49.00602263]
[1741629711014,577.6459198,117.86,117.8,54.48]
[1741629711419,577.6459198,117.86,117.8,58.7998]
[1741629711720,577.6459198,117.86,117.81,0.06011434]
[1741629712925,103.46602263,117.9,117.81,0.06011434]
[1741629713323,8.4915,117.82,117.81,0.06011434]
[1741629715021,551.33205847,117.84,117.75,58.6252]
[1741629715532,551.33205847,117.84,117.75,54.46]
[1741629715735,8.4959,117.76,117.75,54.46]
[1741629716731,8.5537888,117.77,117.75,54.46]
[1741629716931,8.5537888,117.77,117.74,0.05702758]
[1741629717135,8.5539888,117.77,117.74,0.05702758]
[1741629717639,0.0584888,117.77,117.74,0.05702758]
[1741629718233,8.4966,117.75,117.74,0.05702758]
[1741629719626,8.4966,117.75,117.67,49.00602263]
[1741629719627,280.2,117.76,117.69,58.5188]
[1741629720128,280.2,117.76,117.69,4.0988]
[1741629720332,8.5002,117.7,117.69,54.42]
[1741629720727,280.2,117.76,117.69,54.42]
[1741629720930,0.05907316,117.71,117.69,103.42602263]
[1741629721239,280.2,117.76,117.69,103.42602263]
[1741629721436,280.2,117.76,117.69,54.42]
[1741629722335,0.06173246,117.74,117.71,0.06285261]
[1741629723032,8.4988,117.72,117.71,0.06285261]
[1741629724141,0.06173246,117.74,117.71,54.46285261]
[1741629724640,8.55963246,117.74,117.71,54.46285261]
[1741629725237,0.06173246,117.74,117.71,103.46887524]
[1741629725435,280.24,117.81,117.73,49.00602263]
[1741629725635,280.24,117.81,117.71,103.46887524]
[1741629725837,8.4965,117.76,117.71,103.40602263]
[1741629726042,8.4965,117.76,117.72,8.4986]
[1741629726339,280.24,117.81,117.71,103.40602263]
[1741629726538,346.23062263,117.81,117.73,0.05966774]
[1741629726841,280.24,117.81,117.71,103.40602263]
[1741629727043,280.24,117.81,117.76,0.05754744]
[1741629727440,16.9832,117.82,117.76,4.744e-05]
[1741629727636,49.00602263,117.8,117.71,54.4]
[1741629728039,8.4988,117.72,117.71,54.4]
[1741629728242,49.00602263,117.78,117.68,54.38]
[1741629728535,8.502,117.68,117.66,54.38]
[1741629728740,280.24,117.73,117.72,0.05490645]
[1741629728932,280.24,117.73,117.67,49.00602263]
[1741629729131,8.499,117.72,117.71,0.05770917]
[1741629729936,280.30218808,117.73,117.71,0.05770917]
[1741629730136,0.06218808,117.73,117.71,0.05770917]
[1741629730735,0.06218808,117.73,117.71,49.0637318]
[1741629730934,297.2448,117.81,117.71,57.5628318]
[1741629731140,280.26,117.81,117.73,49.00602263]
[1741629731340,280.26,117.81,117.74,54.36]
[1741629731936,502.28603584,117.84,117.76,0.05750791]
[1741629732144,49.00602263,117.8,117.71,54.36]
[1741629732342,49.00602263,117.8,117.68,103.36602263]
[1741629732543,49.00602263,117.78,117.68,103.36602263]
[1741629732851,49.00602263,117.78,117.68,54.36]
[1741629733146,280.24,117.79,117.72,49.00602263]
[1741629733344,0.05938548,117.74,117.73,54.36]
[1741629733546,280.24,117.79,117.73,54.36]
[1741629733736,0.05938548,117.75,117.72,0.0558107]
[1741629733936,0.05938548,117.75,117.7,54.36]
[1741629734139,8.498,117.73,117.72,0.05951338]
[1741629734744,0.05938548,117.75,117.72,0.05951338]
[1741629734946,0.05938548,117.75,117.72,49.06553601]
[1741629735146,0.05938548,117.75,117.72,57.56393601]
[1741629735345,0.05938548,117.75,117.72,49.06553601]
[1741629735548,474.26,117.83,117.72,49.06553601]
[1741629735749,222.04603584,117.84,117.74,49.00602263]
[1741629735938,8.4929,117.81,117.76,49.00602263]
[1741629736138,222.04603584,117.84,117.78,49.00602263]
[1741629736338,222.04603584,117.84,117.8,49.00602263]
[1741629736542,8.4913,117.83,117.81,54.34]
[1741629736739,222.04603584,117.84,117.81,54.40396436]
[1741629737141,11.65968543,117.92,117.83,49.00602263]
[1741629737347,11.65968543,117.92,117.91,49.00602263]
[1741629737541,11.65968543,117.92,117.91,54.34]
[1741629737749,20.14398543,117.92,117.91,54.34]
[1741629738147,11.65968543,117.92,117.9,0.06317652]
[1741629738339,8.4851,117.91,117.9,0.06317652]
[1741629738740,280.3284,117.97,117.9,0.06317652]
[1741629739050,8.4851,117.91,117.9,0.06317652]
[1741629739251,280.18,117.97,117.9,0.06317652]
[1741629739551,280.18,117.97,117.92,49.00602263]
[1741629739745,280.18,117.97,117.92,103.32602263]
[1741629739949,8.4836,117.93,117.92,103.32602263]
[1741629740146,46.63874172,118.01,117.92,103.32602263]
[1741629740344,46.63874172,118.01,117.97,49.00602263]
[1741629740543,46.63874172,118.01,117.99,49.00602263]
[1741629741155,93.27748344,118.02,117.99,49.00602263]
[1741629741348,140.61593595,118.04,118.02,49.00602263]
[1741629741648,234.35989325,118.05,118.03,54.3]
[1741629741649,54.96491715,118.05,118.03,54.3]
[1741629741865,54.96491715,118.05,118.04,49.00602263]
[1741629742265,28.36011715,118.05,118.04,49.00602263]
[1741629742861,36.83511715,118.05,118.04,49.00602263]
[1741629743057,8.475,118.05,118.04,49.00602263]
[1741629743258,280.06,118.07,118.02,0.05744906]
[1741629743458,284.2817,118.06,118.02,0.05744906]
[1741629743766,284.2817,118.06,118.03,0.05969889]
[1741629743967,284.2817,118.06,117.98,54.28]
[1741629745164,0.05792248,118.03,118.01,0.05929101]
[1741629745365,0.05792248,118.03,118.02,54.24]
[1741629745568,0.05792248,118.03,117.86,747.67705015]
[1741629745866,53.16112263,118.05,117.93,49.00602263]
[1741629746055,53.16112263,118.05,117.87,59.96778459]
[1741629746056,53.16112263,118.05,118.03,234.35989325]
[1741629746258,8.4759,118.04,118.03,234.35989325]
[1741629746766,1.47429516,118.15,118.03,234.35989325]
[1741629746767,0.06107111,118.05,118.03,234.35989325]
[1741629747065,279.9,118.11,118.03,360.90185798]
[1741629747266,0.05507137,118.05,118.04,8.4757]
[1741629747462,279.9,118.11,118.03,360.90185798]
[1741629747662,279.9,118.11,118.05,49.00602263]
[1741629747862,49.00602263,118.16,118.06,54.22]
[1741629748059,25.56,118.27,118.06,54.22]
[1741629748060,243.00602263,118.23,118.11,49.00602263]
[1741629748261,8.4644,118.2,118.12,54.22]
[1741629748565,49.00602263,118.23,118.13,49.00602263]
[1741629748864,0.06210118,118.17,118.15,0.0590776]
[1741629749262,8.1799,118.25,118.13,54.22]
[1741629749458,0.05750948,118.17,118.15,0.05452298]
[1741629749767,8.1799,118.25,118.15,49.00602263]
[1741629749968,0.06102374,118.17,118.15,49.06022536]
[1741629750169,4.1551,118.25,118.15,49.00602263]
[1741629750373,4.1551,118.25,118.17,49.00602263]
[1741629750563,0.05484774,118.21,118.18,54.22]
[1741629750763,0.05484774,118.21,118.2,0.06292578]
[1741629751062,0.05484774,118.21,118.2,2.578e-05]
[1741629751269,105.86087037,118.21,118.12,43.23570178]
[1741629751565,49.00602263,118.24,118.13,103.46602263]
[1741629751760,4.1551,118.25,118.13,103.46602263]
[1741629751960,49.00602263,118.22,118.13,54.46]
[1741629752161,49.00602263,118.2,118.12,43.23570178]
[1741629752370,8.4664,118.17,118.16,164.42292156]
[1741629752560,160.04328667,118.19,118.16,10.70802156]
[1741629752766,49.00602263,118.17,118.16,2.156e-05]
[1741629753068,160.04328667,118.19,118.16,2.156e-05]
[1741629753264,8.4664,118.17,118.16,2.156e-05]
[1741629753772,60.01242263,118.17,118.16,2.156e-05]
[1741629753964,328.52602263,118.17,118.13,20.64695815]
[1741629754268,279.52,118.17,118.13,20.64695815]
[1741629754572,8.4685,118.14,118.13,5.815e-05]
[1741629755066,8.4685,118.14,118.11,90.33209757]
[1741629755067,8.47,118.12,118.11,5.572e-05]
[1741629755257,57.47602263,118.12,118.11,5.572e-05]
[1741629755457,60.01602263,118.12,118.11,5.572e-05]
[1741629755660,8.4707,118.11,118.1,4.653e-05]
[1741629756470,11.0107,118.11,118.1,4.653e-05]
[1741629757064,8.4707,118.11,118.1,4.653e-05]
[1741629757469,11.0107,118.11,118.1,4.653e-05]
[1741629757758,51.54602263,118.11,117.9,242.00602263]
[1741629757960,49.00602263,118.08,117.98,173.58104909]
[1741629758274,49.00602263,118.08,117.98,165.10144909]
[1741629758464,49.00602263,118.08,117.98,110.52144909]
[1741629758766,49.00602263,118.06,117.98,110.52144909]
[1741629758962,0.06052452,118.04,118.02,0.05433103]
[1741629759369,279.5,118.1,118.01,103.68602263]
[1741629759567,279.5,118.1,118.03,49.00602263]
[1741629759764,279.52,118.17,118.05,49.00602263]
[1741629759963,279.52,118.17,118.03,49.00602263]
[1741629759964,8.4685,118.14,118.09,8.4716]
[1741629760160,281.21247694,118.17,118.07,57.35772263]
[1741629760370,281.21247694,118.17,118.07,59.89762959]
[1741629760568,0.06182689,118.13,118.11,0.05709279]
[1741629760768,281.21247694,118.17,118.12,54.66]
[1741629760969,279.52,118.22,118.13,49.00602263]
[1741629761267,279.52,118.22,118.15,49.00602263]
[1741629761574,49.00602263,118.26,118.16,54.72]
[1741629761575,8.4657,118.19,118.16,54.72]
[1741629761775,49.00602263,118.26,118.16,54.72]
[1741629761967,279.52,118.27,118.17,49.00602263]
[1741629763270,49.00602263,118.26,118.21,0.06161534]
[1741629763472,279.52,118.27,118.21,0.06161534]
[1741629764277,8.4625,118.23,118.21,0.06161534]
[1741629764480,279.52,118.27,118.21,0.06161534]
[1741629764779,8.4612,118.25,118.21,0.06161534]
[1741629764979,279.52,118.27,118.21,49.06763797]
[1741629765185,279.52,118.27,118.21,2.6015223]
[1741629765574,279.52,118.27,118.21,0.06161534]
[1741629766083,279.36,118.32,118.23,49.00602263]
[1741629766569,25.56,118.3,118.26,0.05840385]
[1741629766769,194.0,118.24,117.96,49.00602263]
[1741629766975,8.4727,118.09,117.99,50.70108153]
[1741629767277,279.36,118.12,118.02,49.00602263]
[1741629767478,328.36602263,118.17,118.05,184.74781466]
[1741629767669,49.00602263,118.17,118.06,1.69405387]
[1741629767867,49.00602263,118.23,118.11,49.00602263]
[1741629768073,8.4637,118.21,118.14,49.00602263]
[1741629768277,8.4637,118.21,118.15,1.69276343]
[1741629768472,49.00602263,118.24,118.15,1.69276343]
[1741629768876,54.74,118.24,118.15,1.69276343]
[1741629769075,328.38602263,118.26,118.18,0.06419878]
[1741629769379,49.00602263,118.23,118.13,54.8]
[1741629769574,1.69176112,118.22,118.13,54.8]
[1741629770081,1.69176112,118.22,118.14,49.00602263]
[1741629770380,49.00602263,118.24,118.13,54.8]
[1741629770874,0.05991341,118.2,118.17,0.06472785]
[1741629771273,279.34,118.19,118.08,232.5316]
[1741629771468,49.00602263,118.18,118.09,4.068]
[1741629771673,49.00602263,118.2,118.09,53.07402263]
[1741629771980,49.00602263,118.2,118.1,1.6934801]
[1741629772169,49.00602263,118.18,118.1,1.6934801]
[1741629772576,0.06238317,118.15,118.13,0.05988036]
[1741629772880,49.00602263,118.22,118.13,54.63988036]
[1741629773067,279.34,118.23,118.13,54.63988036]
[1741629773068,8.4644,118.2,118.14,8.4684]
[1741629773269,279.34,118.23,118.13,54.58]
[1741629773468,279.34,118.23,118.14,49.00602263]
[1741629773673,8.4636,118.21,118.14,49.00602263]
[1741629773874,279.34,118.23,118.14,49.00602263]
[1741629774076,279.34,118.23,118.13,54.58]
[1741629774275,0.05499683,118.2,118.17,0.05441972]
[1741629774774,8.4657,118.18,118.17,0.05441972]
[1741629774974,0.05499683,118.2,118.17,0.05441972]
[1741629775981,8.465,118.19,118.17,0.05441972]
[1741629776183,0.05499683,118.2,118.17,0.05441972]
[1741629776472,8.4657,118.18,118.17,0.05441972]
[1741629776680,0.05499683,118.2,118.17,0.05441972]
[1741629777675,0.05499683,118.2,118.18,54.28]
[1741629778177,0.05499683,118.2,118.17,0.05441972]
[1741629778672,8.4657,118.18,118.17,0.05441972]
[1741629778980,49.00602263,118.18,118.1,55.8134801]
[1741629779171,8.4697,118.13,118.1,55.8134801]
[1741629779481,49.00602263,118.16,118.1,54.12]
[1741629780183,8.4737,118.07,118.04,12.6932]
[1741629780880,8.475,118.05,118.04,12.6932]
[1741629781082,49.00602263,118.1,118.02,54.12]
[1741629781381,8.4764,118.03,118.02,0.05460964]
[1741629781583,0.06081156,118.05,117.98,107.98154213]
[1741629781778,49.00602263,118.08,118.01,0.06122855]
[1741629782081,279.3,118.09,117.98,107.98154213]
[1741629782286,0.05624404,118.06,118.03,0.05732929]
[1741629782580,8.4757,118.04,118.03,0.05732929]
[1741629782782,0.05624404,118.06,118.03,0.05732929]
[1741629783781,0.05624404,118.06,118.03,4.24152929]
[1741629783980,0.05624404,118.06,118.03,0.05732929]
[1741629784375,0.05624404,118.06,118.04,49.00602263]
[1741629784580,279.38,118.15,118.04,49.00602263]
[1741629784784,279.38,118.15,118.08,49.00602263]
[1741629784980,279.38,118.15,118.09,58.3242]
[1741629785289,8.4707,118.11,118.09,58.3242]
[1741629785490,34.41728988,118.17,118.1,49.00602263]
[1741629785691,34.41728988,118.17,118.12,49.00602263]
[1741629785983,34.41728988,118.17,118.1,8.4508]
[1741629785984,0.06500169,118.15,118.1,8.4508]
[1741629786183,0.06500169,118.15,118.13,0.05499428]
[1741629787179,8.4685,118.14,118.13,0.05499428]
[1741629787789,0.06500169,118.15,118.05,54.14]
[1741629787985,8.4725,118.09,118.05,54.14]
[1741629788489,279.36,118.12,118.05,54.14]
[1741629788994,0.05520583,118.1,118.07,0.0592585]
[1741629789493,414.74884632,118.26,118.13,8.4688]
[1741629789792,34.41728988,118.19,118.14,54.14]
[1741629789987,34.41728988,118.19,118.14,103.14602263]
[1741629790188,34.41728988,118.19,118.16,49.00602263]
[1741629790391,34.41728988,118.19,118.14,103.14602263]
[1741629790586,34.48090818,118.19,118.16,0.05631741]
[1741629791899,8.4664,118.17,118.16,0.05631741]
[1741629792491,2.54,118.17,118.09,54.14]
[1741629792685,103.14602263,118.18,118.09,54.14]
[1741629793089,54.14,118.18,118.09,54.14]
[1741629793496,8.4697,118.13,118.09,54.14]
[1741629793694,0.05535516,118.15,118.12,0.05480638]
[1741629793897,54.14,118.18,118.12,0.05480638]
[1741629794092,0.05917616,118.15,118.12,0.05480638]
[1741629794493,103.12602263,118.14,118.04,54.12]
[1741629794792,103.12602263,118.14,118.04,62.5955]
[1741629795097,103.12602263,118.14,118.04,54.12]
[1741629795688,0.0550948,118.1,118.08,0.06445575]
[1741629795889,194.0,118.18,118.09,49.00602263]
[1741629796095,279.34,118.19,118.09,53.08472263]
[1741629796299,279.34,118.19,118.1,4.3114]
[1741629796693,313.75728988,118.19,118.13,49.00602263]
[1741629797001,313.75728988,118.19,118.14,54.12]
[1741629797199,8.4671,118.16,118.15,0.05343824]
[1741629797399,0.05348018,118.17,118.15,0.05343824]
[1741629798292,8.4671,118.16,118.15,0.05343824]
[1741629798490,0.05348018,118.17,118.15,0.05343824]
[1741629799099,34.41728988,118.19,118.16,49.00602263]
[1741629799401,54.12,118.27,118.16,49.00602263]
[1741629799602,103.12602263,118.27,118.16,49.00602263]
[1741629799995,328.32602263,118.25,118.15,54.12]
[1741629800197,0.0601096,118.22,118.19,0.05518324]
[1741629800397,0.0601096,118.22,118.1,4.3114]
[1741629800398,8.469,118.14,118.11,54.12]
[1741629800603,49.00602263,118.21,118.11,54.12]
[1741629800805,49.00602263,118.19,118.11,54.12]
[1741629801104,279.32,118.18,118.11,54.12]
[1741629801496,279.32,118.18,118.13,0.06345871]
[1741629801699,0.06228257,118.16,118.13,0.06345871]
[1741629801998,0.06228257,118.16,118.13,0.02979894]
[1741629802206,8.4685,118.14,118.13,0.02979894]
[1741629802400,279.28,118.15,118.06,54.1]
[1741629802604,49.00602263,118.13,118.05,8.1079]
[1741629802906,49.00602263,118.09,117.99,49.00602263]
[1741629803101,279.28,118.08,118.0,5.91371016]
[1741629803495,49.00602263,118.07,117.98,8.1079]
[1741629803802,8.4757,118.04,118.03,0.05479276]
[1741629804805,0.05353521,118.05,118.03,0.05479276]
[1741629805501,8.4757,118.04,118.03,0.05479276]
[1741629806107,8.4757,118.04,117.96,363.99005835]
[1741629806108,2.54,118.04,117.96,363.99005835]
[1741629806403,49.00602263,118.0,117.96,55.13]
[1741629806600,8.4808,117.97,117.96,51.0771]
[1741629807002,2.54,117.97,117.87,62.6254]
[1741629807201,49.00602263,117.96,117.87,8.5054]
[1741629807407,49.00602263,117.94,117.91,0.05723175]
[1741629807602,0.05418305,117.93,117.91,0.05723175]
[1741629807799,287.9443,117.92,117.91,0.05723175]
[1741629808196,339.49032263,117.92,117.91,3.175e-05]
[1741629808397,8.4887,117.86,117.85,135.74179203]
[1741629808596,382.60602263,117.92,117.85,135.74179203]
[1741629808901,49.00602263,117.9,117.85,135.74179203]
[1741629809102,194.0,117.99,117.87,49.00602263]
[1741629809297,49.00602263,117.99,117.89,49.00602263]
[1741629809500,0.05337501,117.94,117.92,0.06240013]
[1741629809703,49.00602263,117.97,117.9,54.14]
[1741629810007,0.06266215,117.94,117.92,0.05812269]
[1741629810907,103.14602263,118.02,117.92,0.05812269]
[1741629811307,8.4819,117.96,117.9,62.6257]
[1741629811500,103.14602263,118.02,117.91,49.00602263]
[1741629811700,8.4812,117.97,117.91,53.35322263]
[1741629811903,8.4812,117.97,117.91,61.83812263]
[1741629812099,0.05340466,117.95,117.93,0.05685719]
[1741629812301,8.4781,118.01,117.94,54.16]
[1741629812505,279.46,118.03,117.94,54.16]
[1741629813308,49.00602263,118.02,117.92,54.16]
[1741629813509,0.05496787,118.0,117.97,0.06466861]
[1741629815707,49.0609905,118.0,117.87,182.2296]
[1741629816006,49.00602263,117.98,117.88,54.16]
[1741629816510,49.00602263,118.0,117.88,54.16]
[1741629816701,49.00602263,117.98,117.88,54.16]
[1741629816906,0.06487777,117.95,117.93,0.05501709]
[1741629818012,8.4784,118.01,117.96,8.481]
[1741629818218,279.46,118.03,117.96,54.16]
[1741629818512,328.68602263,118.08,117.99,8.4789]
[1741629819107,8.4763,118.04,118.02,0.05804283]
[1741629819306,0.05478628,118.05,118.02,0.05804283]
[1741629820715,8.4764,118.03,118.02,0.05804283]
[1741629821305,2.54,118.03,117.89,177.8116]
[1741629821507,54.16,118.05,117.95,49.00602263]
[1741629821717,54.16,118.05,117.96,8.4812]
[1741629822513,8.4784,118.01,117.99,0.0602799]
[1741629822704,0.06116041,118.02,117.99,0.0602799]
[1741629823110,8.4786,118.0,117.99,0.0602799]
[1741629823516,0.06116041,118.02,117.99,0.0602799]
[1741629824209,8.4786,118.0,117.99,0.0602799]
[1741629825108,8.53866041,118.02,117.99,0.0602799]
[1741629825312,0.06116041,118.02,118.0,8.4782]
[1741629825515,279.68,118.08,117.99,53.44690253]
[1741629825713,8.4753,118.05,117.99,53.38662263]
[1741629825921,279.68,118.08,118.01,8.4772]
[1741629826113,279.68,118.08,118.0,4.2176]
[1741629826316,328.68602263,118.08,118.02,21.18]
[1741629826612,49.00602263,118.06,118.02,21.18]
[1741629826809,49.00602263,118.04,118.02,8.35750649]
[1741629827011,49.00602263,118.04,117.96,4.2176]
[1741629827317,8.4802,117.98,117.96,4.2176]
[1741629827510,279.66,118.01,117.95,52.11]
[1741629827708,279.66,118.0,117.95,52.11]
[1741629827932,8.4815,117.96,117.95,52.11]
[1741629828116,0.05431492,117.99,117.95,52.11]
[1741629829316,49.00602263,117.98,117.95,52.11]
[1741629829516,8.4815,117.96,117.95,52.11]
[1741629829914,8.4815,117.96,117.95,9.8994]
[1741629830218,8.4822,117.95,117.94,0.0604248]
[1741629830924,8.4822,117.95,117.94,2.48e-05]
[1741629831925,11.0222,117.95,117.94,2.48e-05]
[1741629832124,2.54,117.95,117.86,4.0541]
[1741629832323,49.00602263,117.94,117.86,4.0541]
[1741629832525,8.4865,117.89,117.86,4.0541]
[1741629833028,49.00602263,117.92,117.86,4.0541]
[1741629833321,0.05372208,117.89,117.86,4.11882432]
[1741629833924,0.05372208,117.89,117.86,0.06472432]
[1741629834530,0.05372208,117.89,117.88,8.4872]
[1741629834726,288.2237,117.93,117.86,0.06472432]
[1741629835028,288.2237,117.93,117.86,8.55292432]
[1741629835227,279.74,117.93,117.86,0.06472432]
[1741629835834,0.05367122,117.91,117.87,59.38]
[1741629836230,0.05367122,117.91,117.88,0.05503326]
[1741629837032,0.05367122,117.91,117.9,8.4858]
[1741629837431,0.05367122,117.91,117.88,0.05503326]
[1741629838734,49.00602263,117.9,117.88,0.05503326]
[1741629839633,0.05367122,117.91,117.88,0.05503326]
[1741629840034,0.05367122,117.91,117.88,8.54193326]
[1741629840234,0.05367122,117.91,117.88,0.05503326]
[1741629841651,0.05367122,117.91,117.88,54.23503326]
[1741629841840,279.74,117.93,117.88,62.60123326]
[1741629842050,279.74,117.93,117.89,4.0013]
[1741629842240,279.74,117.93,117.92,8.4843]
[1741629843136,0.05970857,117.94,117.91,0.05768818]
[1741629843335,4.98557568,117.98,117.92,54.18]
[1741629843543,124.09497182,118.0,117.97,49.00602263]
[1741629843841,111.09937182,118.0,117.99,49.00602263]
[1741629844039,111.09937182,118.0,117.99,8.4793]
[1741629844238,111.09937182,118.0,117.97,54.16]
[1741629844437,111.09937182,118.0,117.98,0.0540104]
[1741629844935,78.00197182,118.0,117.99,49.00602263]
[1741629845142,31.32817327,118.01,117.99,50.54780949]
[1741629845338,225.61474387,118.02,117.99,49.00602263]
[1741629845938,225.61474387,118.02,118.01,49.00602263]
[1741629846241,152.09478326,118.03,118.02,8.4772]
[1741629846538,137.34978326,118.03,118.02,55.70123999]
[1741629846744,137.34978326,118.03,118.01,0.05874555]
[1741629846942,0.05503023,118.03,118.01,0.05874555]
[1741629847534,0.05503023,118.03,117.94,49.00602263]
[1741629847740,103.14602263,118.04,117.93,55.8359213]
[1741629848141,49.00602263,118.02,117.93,55.8359213]
[1741629848337,49.00602263,118.02,117.93,54.14]
[1741629848741,0.06257844,117.99,117.96,0.05893993]
[1741629849044,279.84257844,117.99,117.92,35.06851025]
[1741629849241,4.0566,117.98,117.92,35.06851025]
[1741629849442,8.4816,117.96,117.92,35.06851025]
[1741629849947,8.4808,117.97,117.96,278.66289988]
[1741629850138,8.4808,117.97,117.96,232.08419988]